[Event "European Womens-ch 2025"]
[Site "Rhodes"]
[Date "2025.04.01"]
[Round "2.15"]
[White "Lehaci, Miruna-Daria"]
[Black "Bulmaga, Irina"]
[Result "0-1"]
[Annotator "RC"]
[ECO "B11"]
[WhiteElo "2212"]
[BlackElo "2362"]
[PlyCount "150"]
[EventDate "2025.03.29"]
[EventType "swiss"]
[EventCountry "GRE"]
[SourceTitle "playchess.com"]
[Source "ChessBase"]
[SourceQuality "1"]
[TimeControl "40/5400+30:1800+30"]

1. e4 {[%emt 0:00:05]} c6 {[%emt 0:00:06]} 2. Nf3 {[%emt 0:00:25]} d5 {[%emt 0:00:18]} 3. Nc3 {[%emt 0:00:05]} Bg4 {[%emt 0:00:15]} 4. h3 {[%emt 0:00:06]} Bxf3 {[%emt 0:00:07]} 5. Qxf3 {[%emt 0:00:04]} e6 {[%emt 0:00:13]} 6. Be2 {[%emt 0:00:16]} g6 {[%emt 0:00:31]} 7. d4 {[%emt 0:09:13]} Bg7 {[%emt 0:00:23]} 8. e5 {[%emt 0:03:06]} Nd7 {[%emt 0:01:39]} 9. O-O {[%emt 0:06:11]} a6 {[%emt 0:05:32]} 10. Nd1 {[%emt 0:01:54]} c5 {[%emt 0:03:45]} 11. c3 {[%emt 0:01:58]} Ne7 {[%emt 0:03:48]} 12. Ne3 {[%emt 0:04:41]} cxd4 {[%emt 0:12:48]} 13. cxd4 {[%emt 0:00:07]} O-O {[%emt 0:04:28]} 14. Nc2 {[%emt 0:02:14]} f6 {[%emt 0:11:26]} 15. exf6 {[%emt 0:01:12]} Nxf6 {[%emt 0:04:40]} 16. Qb3 {[%emt 0:03:09]} Qd7 {[%emt 0:07:57]} 17. Bd3 {[%emt 0:07:20]} Nc6 {[%emt 0:03:16]} 18. Be3 {[%emt 0:02:11]} Nh5 {[%emt 0:03:43]} 19. Rfe1 {[%emt 0:02:41]} Rac8 {[%emt 0:00:17]} 20. Be2 {[%emt 0:08:58]} Nf6 {[%emt 0:01:30]} 21. Qd3 {[%emt 0:05:46]} Rf7 {[%emt 0:04:17]} 22. Rec1 {[%emt 0:03:35]} Rcf8 {[%emt 0:05:31]} 23. Rf1 {[%emt 0:06:13]} Ne4 {[%emt 0:00:33]} 24. Rad1 {[%emt 0:01:47]} Qe7 {[%emt 0:04:17]} 25. Ne1 {[%emt 0:01:53]} Rf5 {[%emt 0:03:17]} 26. Bg4 {[%emt 0:05:00]} R5f7 {[%emt 0:01:36]} 27. Be2 {[%emt 0:00:13]} Qb4 {[%emt 0:01:41]} 28. Bg4 {[%emt 0:03:03]} Rf6 {[%emt 0:04:03]} 29. b3 {[%emt 0:01:50]} h6 {[%emt 0:00:50]} 30. Bf3 {[%emt 0:01:48]} Nd6 {[%emt 0:01:34]} 31. Qd2 {[%emt 0:06:31]} Qb6 {[%emt 0:00:10]} 32. Nc2 {[%emt 0:02:17]} Kh7 {[%emt 0:01:53]} 33. Rfe1 {[%emt 0:03:17]} Qd8 {[%emt 0:02:19]} 34. Qe2 {[%emt 0:02:46]} R6f7 {[%emt 0:02:24]} 35. Bc1 {[%emt 0:02:16]} e5 {[%emt 0:01:43]} 36. dxe5 {[%emt 0:01:30]} Nxe5 {[%emt 0:00:02]} 37. Bxd5 {[%emt 0:00:56]} Rxf2 {[%emt 0:00:27]} 38. Qxf2 {[%emt 0:00:10]} Rxf2 {[%emt 0:00:11]} 39. Kxf2 {[%emt 0:00:04]} Nf5 {[%emt 0:01:49]} 40. Ne3 {[%emt 0:00:00]} Qb6 {[%emt 0:00:00]} 41. Kf1 {[%emt 0:05:09]} Ng3+ {[%emt 0:11:55]} 42. Kf2 {[%emt 0:06:24]} Nf5 {[%emt 0:01:03]} 43. Kf1 {[%emt 0:00:04]} Ng3+ {[%emt 0:08:50]} 44. Kf2 {[%emt 0:00:04]} Nh5 {[%emt 0:04:44]} 45. g3 {[%emt 0:00:12]} Qc7 {[%emt 0:00:30]} 46. Rf1 {[%emt 0:07:56]} Nc6 {[%emt 0:01:30]} 47. Rg1 {[%emt 0:00:58]} Be5 {[%emt 0:00:38]} 48. Nf1 {[%emt 0:02:08]} Nb4 {[%emt 0:02:16]} 49. Bc4 {[%emt 0:02:41]} Nxa2 {[%emt 0:01:25]} 50. Bd2 {[%emt 0:01:18]} b5 {[%emt 0:02:22]} 51. Bd5 {[%emt 0:02:00]} Nc3 {[%emt 0:00:59]} 52. Bxc3 {[%emt 0:00:49]} Qxc3 {[%emt 0:00:02]} 53. Rg2 {[%emt 0:01:59]} Bd4+ {[%emt 0:01:23]} 54. Ke2 {[%emt 0:00:07]} Nf6 {[%emt 0:01:22]} 55. Bf3 {[%emt 0:00:52]} Nd7 {[%emt 0:00:28]} 56. g4 {[%emt 0:03:55]} Nc5 {[%emt 0:00:34]} 57. Bd5 {[%emt 0:00:49]} Bf6 {[%emt 0:02:21]} 58. Rf2 {[%emt 0:00:59]} Kg7 {[%emt 0:00:25]} 59. Rf3 {[%emt 0:00:24]} Qb2+ {[%emt 0:00:32]} 60. Rd2 {[%emt 0:00:12]} Qa1 {[%emt 0:00:25]} 61. Rd1 {[%emt 0:01:06]} Qa2+ {[%emt 0:00:09]} 62. Rd2 {[%emt 0:00:11]} Qa5 {[%emt 0:00:15]} 63. Ng3 {[%emt 0:00:49]} Qc7 {[%emt 0:00:48]} 64. Kf2 {[%emt 0:00:39]} Nd7 {[%emt 0:00:37]} 65. Kg2 {[%emt 0:00:30]} Ne5 {[%emt 0:00:11]} 66. Rf1 {[%emt 0:00:33]} a5 {[%emt 0:01:15]} 67. Rff2 {[%emt 0:01:49]} Bh4 {[%emt 0:00:14]} 68. Rc2 {[%emt 0:00:59]} Qd6 {[%emt 0:00:06]} 69. Rfd2 {[%emt 0:00:05]} Bxg3 {[%emt 0:00:41]} 70. Be4 {[%emt 0:01:14]} Qb4 {[%emt 0:00:26]} 71. Bd5 {[%emt 0:01:40]} Bf4 {[%emt 0:01:05]} 72. Rc7+ {[%emt 0:00:06]} Kf6 {[%emt 0:00:09]} 73. Rdc2 {[%emt 0:00:05]} Qd4 {[%emt 0:00:37]} 74. R7c5 {[%emt 0:00:21]} Nd3 {[%emt 0:00:47]} 75. Rc6+ {[%emt 0:00:43]} Kg7 {[%emt 0:00:26]} 0-1

[Event "European Womens-ch 2025"]
[Site "Rhodes"]
[Date "2025.04.01"]
[Round "2.16"]
[White "Mamedjarova, Turkan"]
[Black "Savina, Anastasia"]
[Result "1/2-1/2"]
[Annotator "RC"]
[ECO "C01"]
[WhiteElo "2206"]
[BlackElo "2331"]
[PlyCount "36"]
[EventDate "2025.03.29"]
[EventType "swiss"]
[EventCountry "GRE"]
[SourceTitle "playchess.com"]
[Source "ChessBase"]
[SourceQuality "1"]
[TimeControl "40/5400+30:1800+30"]

1. e4 {[%emt 0:00:03]} e5 {[%emt 0:02:57]} 2. d4 {[%emt 0:00:30]} exd4 {[%emt 0:00:21]} 3. c3 {[%emt 0:01:08]} d5 {[%emt 0:10:31]} 4. exd5 {[%emt 0:00:44]} Nf6 {[%emt 0:02:57]} 5. cxd4 {[%emt 0:00:48]} Nxd5 {[%emt 0:02:29]} 6. Nc3 {[%emt 0:00:41]} Bb4 {[%emt 0:07:40]} 7. Qb3 {[%emt 0:11:29]} Nc6 {[%emt 0:18:22]} 8. Bb5 {[%emt 0:05:29]} O-O {[%emt 0:16:00]} 9. Nge2 {[%emt 0:03:47]} Be6 {[%emt 0:06:09]} 10. Bxc6 {[%emt 0:08:19]} Nxc3 {[%emt 0:07:06]} 11. Qxb4 {[%emt 0:00:09]} Nxe2 {[%emt 0:00:08]} 12. Kxe2 {[%emt 0:14:11]} bxc6 {[%emt 0:00:06]} 13. Re1 {[%emt 0:03:29]} Qh4 {[%emt 0:06:01]} 14. h3 {[%emt 0:00:45]} Rfe8 {[%emt 0:09:15]} 15. Kf1 {[%emt 0:03:03]} Bxh3 {[%emt 0:04:40]} 16. gxh3 {[%emt 0:00:49]} Qxh3+ {[%emt 0:00:05]} 17. Kg1 {[%emt 0:00:02]} Qg4+ {[%emt 0:00:55]} 18. Kf1 {[%emt 0:00:44]} Qh3+ {[%emt 0:01:15]} 1/2-1/2

[Event "European Womens-ch 2025"]
[Site "Rhodes"]
[Date "2025.04.01"]
[Round "2.17"]
[White "Brunello, Marina"]
[Black "Prado Acebo, Ines"]
[Result "1-0"]
[Annotator "RC"]
[ECO "A14"]
[WhiteElo "2330"]
[BlackElo "2199"]
[PlyCount "45"]
[EventDate "2025.03.29"]
[EventType "swiss"]
[EventCountry "GRE"]
[SourceTitle "playchess.com"]
[Source "ChessBase"]
[SourceQuality "1"]
[TimeControl "40/5400+30:1800+30"]

1. Nf3 {[%emt 0:00:05]} d5 {[%emt 0:00:12]} 2. g3 {[%emt 0:00:07]} Nf6 {[%emt 0:00:13]} 3. Bg2 {[%emt 0:00:08]} e6 {[%emt 0:01:14]} 4. O-O {[%emt 0:00:49]} Be7 {[%emt 0:00:11]} 5. c4 {[%emt 0:00:23]} dxc4 {[%emt 0:01:55]} 6. Na3 {[%emt 0:00:33]} Bxa3 {[%emt 0:02:48]} 7. bxa3 {[%emt 0:00:07]} Nc6 {[%emt 0:00:57]} 8. Qc2 {[%emt 0:02:29]} O-O {[%emt 0:03:41]} 9. Qxc4 {[%emt 0:01:06]} e5 {[%emt 0:00:10]} 10. d3 {[%emt 0:01:57]} Be6 {[%emt 0:13:34]} 11. Qb5 {[%emt 0:07:18]} Qd5 {[%emt 0:07:25]} 12. Qxb7 {[%emt 0:06:50]} Rab8 {[%emt 0:08:46]} 13. Qa6 {[%emt 0:01:51]} Rb6 {[%emt 0:07:57]} 14. Qa4 {[%emt 0:00:57]} e4 {[%emt 0:06:37]} 15. Be3 {[%emt 0:05:46]} Rb2 {[%emt 0:08:26]} 16. Ng5 {[%emt 0:08:31]} Bd7 {[%emt 0:04:55]} 17. Nxe4 {[%emt 0:01:26]} Nxe4 {[%emt 0:00:22]} 18. Bxe4 {[%emt 0:00:46]} Qe6 {[%emt 0:00:22]} 19. Rac1 {[%emt 0:08:40]} Ne5 {[%emt 0:03:30]} 20. Qxa7 {[%emt 0:01:08]} Rxe2 {[%emt 0:03:37]} 21. Rxc7 {[%emt 0:00:36]} Bc8 {[%emt 0:14:21]} 22. Qc5 {[%emt 0:09:23]} Ng4 {[%emt 0:02:01]} 23. Bd5 {[%emt 0:02:25]} 1-0

[Event "European Womens-ch 2025"]
[Site "Rhodes"]
[Date "2025.04.01"]
[Round "2.18"]
[White "Gaboyan, Susanna"]
[Black "Toncheva, Nadya"]
[Result "1/2-1/2"]
[Annotator "RC"]
[ECO "B30"]
[WhiteElo "2200"]
[BlackElo "2329"]
[PlyCount "52"]
[EventDate "2025.03.29"]
[EventType "swiss"]
[EventCountry "GRE"]
[SourceTitle "playchess.com"]
[Source "ChessBase"]
[SourceQuality "1"]
[TimeControl "40/5400+30:1800+30"]

1. e4 {[%emt 0:00:11]} c5 {[%emt 0:00:08]} 2. Nf3 {[%emt 0:00:39]} Nc6 {[%emt 0:00:07]} 3. Bb5 {[%emt 0:00:19]} e6 {[%emt 0:00:08]} 4. O-O {[%emt 0:00:31]} Nge7 {[%emt 0:00:06]} 5. c3 {[%emt 0:00:21]} a6 {[%emt 0:06:07]} 6. Ba4 {[%emt 0:00:45]} b5 {[%emt 0:03:38]} 7. Bc2 {[%emt 0:01:10]} d5 {[%emt 0:03:42]} 8. d4 {[%emt 0:01:01]} cxd4 {[%emt 0:09:12]} 9. a4 {[%emt 0:00:56]} b4 {[%emt 0:09:55]} 10. cxd4 {[%emt 0:01:09]} dxe4 {[%emt 0:02:38]} 11. Bxe4 {[%emt 0:00:07]} Nd5 {[%emt 0:02:22]} 12. Bg5 {[%emt 0:00:26]} Be7 {[%emt 0:03:24]} 13. Bxe7 {[%emt 0:00:43]} Ncxe7 {[%emt 0:00:32]} 14. Nbd2 {[%emt 0:00:12]} Ra7 {[%emt 0:05:16]} 15. Nb3 {[%emt 0:01:53]} Nf6 {[%emt 0:06:20]} 16. Bd3 {[%emt 0:07:32]} O-O {[%emt 0:04:39]} 17. Nc5 {[%emt 0:00:24]} Qd6 {[%emt 0:07:28]} 18. Qe2 {[%emt 0:04:29]} a5 {[%emt 0:03:37]} 19. Rfd1 {[%emt 0:04:46]} Ng6 {[%emt 0:02:37]} 20. Bxg6 {[%emt 0:10:42]} hxg6 {[%emt 0:00:09]} 21. Ne5 {[%emt 0:00:05]} Bb7 {[%emt 0:02:20]} 22. Nc4 {[%emt 0:03:19]} Qd5 {[%emt 0:01:02]} 23. Ne3 {[%emt 0:03:07]} Qd6 {[%emt 0:01:11]} 24. Nc4 {[%emt 0:06:25]} Qd5 {[%emt 0:00:33]} 25. Ne3 {[%emt 0:06:02]} Qd6 {[%emt 0:00:07]} 26. Nc4 {[%emt 0:06:47]} Qd5 {[%emt 0:00:16]} 1/2-1/2

[Event "European Womens-ch 2025"]
[Site "Rhodes"]
[Date "2025.04.01"]
[Round "2.19"]
[White "Zawadzka, Jolanta"]
[Black "Kirtadze, Anastasia"]
[Result "0-1"]
[Annotator "RC"]
[ECO "B40"]
[WhiteElo "2326"]
[BlackElo "2180"]
[PlyCount "78"]
[EventDate "2025.03.29"]
[EventType "swiss"]
[EventCountry "GRE"]
[SourceTitle "playchess.com"]
[Source "ChessBase"]
[SourceQuality "1"]
[TimeControl "40/5400+30:1800+30"]

1. e4 {[%emt 0:00:03]} c5 {[%emt 0:00:09]} 2. Nf3 {[%emt 0:00:07]} e6 {[%emt 0:00:04]} 3. g3 {[%emt 0:00:10]} Nc6 {[%emt 0:01:35]} 4. Bg2 {[%emt 0:00:11]} Nf6 {[%emt 0:02:08]} 5. Nc3 {[%emt 0:00:16]} e5 {[%emt 0:07:20]} 6. Nd5 {[%emt 0:07:40]} d6 {[%emt 0:02:14]} 7. O-O {[%emt 0:11:00]} Be7 {[%emt 0:05:37]} 8. Re1 {[%emt 0:01:37]} O-O {[%emt 0:08:17]} 9. c3 {[%emt 0:01:22]} Be6 {[%emt 0:03:41]} 10. Nxe7+ {[%emt 0:09:26]} Qxe7 {[%emt 0:00:07]} 11. h3 {[%emt 0:00:09]} c4 {[%emt 0:05:07]} 12. d4 {[%emt 0:05:27]} cxd3 {[%emt 0:00:15]} 13. Bg5 {[%emt 0:00:51]} h6 {[%emt 0:07:37]} 14. Bxf6 {[%emt 0:00:20]} Qxf6 {[%emt 0:00:04]} 15. Qxd3 {[%emt 0:00:10]} Rad8 {[%emt 0:01:16]} 16. Nd2 {[%emt 0:05:11]} Qe7 {[%emt 0:03:55]} 17. Nf1 {[%emt 0:04:03]} Qd7 {[%emt 0:05:14]} 18. g4 {[%emt 0:04:49]} Ne7 {[%emt 0:03:08]} 19. Ng3 {[%emt 0:05:18]} Ng6 {[%emt 0:06:10]} 20. Qe3 {[%emt 0:02:47]} b6 {[%emt 0:05:00]} 21. a4 {[%emt 0:02:23]} Nf4 {[%emt 0:01:33]} 22. a5 {[%emt 0:02:27]} b5 {[%emt 0:02:51]} 23. Red1 {[%emt 0:02:05]} g6 {[%emt 0:04:10]} 24. Ne2 {[%emt 0:05:10]} Nxe2+ {[%emt 0:04:36]} 25. Qxe2 {[%emt 0:00:04]} f5 {[%emt 0:00:24]} 26. exf5 {[%emt 0:03:16]} gxf5 {[%emt 0:00:02]} 27. gxf5 {[%emt 0:00:57]} Bxf5 {[%emt 0:01:43]} 28. Kh2 {[%emt 0:00:12]} Kh8 {[%emt 0:12:09]} 29. a6 {[%emt 0:01:51]} Be6 {[%emt 0:01:21]} 30. Qe3 {[%emt 0:04:11]} Rf4 {[%emt 0:01:50]} 31. Rd4 {[%emt 0:04:27]} Rf6 {[%emt 0:00:24]} 32. Rd2 {[%emt 0:00:58]} Rg8 {[%emt 0:00:59]} 33. Rg1 {[%emt 0:03:27]} Qg7 {[%emt 0:03:04]} 34. Rxd6 {[%emt 0:04:03]} Rg6 {[%emt 0:00:19]} 35. Qe4 {[%emt 0:00:13]} Qf6 {[%emt 0:01:29]} 36. Rd2 {[%emt 0:03:55]} Bf5 {[%emt 0:01:32]} 37. Qe3 {[%emt 0:00:57]} Qg7 {[%emt 0:00:51]} 38. f4 {[%emt 0:00:48]} exf4 {[%emt 0:00:33]} 39. Qxf4 {[%emt 0:00:28]} Bc8 {[%emt 0:00:33]} 0-1

[Event "European Womens-ch 2025"]
[Site "Rhodes"]
[Date "2025.04.01"]
[Round "2.20"]
[White "Ibrahimova, Sabina"]
[Black "Antolak, Julia"]
[Result "1/2-1/2"]
[Annotator "RC"]
[ECO "D31"]
[WhiteElo "2199"]
[BlackElo "2314"]
[PlyCount "92"]
[EventDate "2025.03.29"]
[EventType "swiss"]
[EventCountry "GRE"]
[SourceTitle "playchess.com"]
[Source "ChessBase"]
[SourceQuality "1"]
[TimeControl "40/5400+30:1800+30"]

1. c4 {[%emt 0:01:26]} e6 {[%emt 0:00:07]} 2. Nc3 {[%emt 0:00:27]} d5 {[%emt 0:00:07]} 3. d4 {[%emt 0:00:36]} c6 {[%emt 0:00:17]} 4. e4 {[%emt 0:00:38]} dxe4 {[%emt 0:00:17]} 5. Nxe4 {[%emt 0:00:07]} Bb4+ {[%emt 0:00:05]} 6. Bd2 {[%emt 0:00:27]} Qxd4 {[%emt 0:00:17]} 7. Bxb4 {[%emt 0:00:17]} Qxe4+ {[%emt 0:00:08]} 8. Be2 {[%emt 0:00:10]} Na6 {[%emt 0:00:15]} 9. Bd6 {[%emt 0:00:28]} Qxg2 {[%emt 0:02:05]} 10. Bf3 {[%emt 0:00:27]} Qg5 {[%emt 0:00:25]} 11. Ne2 {[%emt 0:02:22]} Ne7 {[%emt 0:06:40]} 12. Rg1 {[%emt 0:05:23]} Qa5+ {[%emt 0:04:49]} 13. Nc3 {[%emt 0:01:29]} Nf5 {[%emt 0:01:32]} 14. Qd2 {[%emt 0:17:06]} Nxd6 {[%emt 0:08:11]} 15. Qxd6 {[%emt 0:00:10]} Qc5 {[%emt 0:00:33]} 16. Qd2 {[%emt 0:14:51]} Qe5+ {[%emt 0:06:47]} 17. Ne4 {[%emt 0:02:33]} O-O {[%emt 0:08:53]} 18. O-O-O {[%emt 0:01:11]} f5 {[%emt 0:01:39]} 19. Ng3 {[%emt 0:08:54]} Rf7 {[%emt 0:16:06]} 20. Nh5 {[%emt 0:09:49]} Bd7 {[%emt 0:03:53]} 21. Rde1 {[%emt 0:10:09]} Qc5 {[%emt 0:04:34]} 22. Nxg7 {[%emt 0:05:01]} Qxc4+ {[%emt 0:03:51]} 23. Kd1 {[%emt 0:10:20]} Kh8 {[%emt 0:04:16]} 24. Bh5 {[%emt 0:03:29]} Rff8 {[%emt 0:02:11]} 25. b3 {[%emt 0:01:47]} Qd5 {[%emt 0:04:01]} 26. Qxd5 {[%emt 0:01:07]} exd5 {[%emt 0:00:06]} 27. Re7 {[%emt 0:00:27]} Rad8 {[%emt 0:00:16]} 28. Bf7 {[%emt 0:02:02]} Nc5 {[%emt 0:01:14]} 29. Nh5 {[%emt 0:00:40]} Be8 {[%emt 0:08:18]} 30. Bxe8 {[%emt 0:00:12]} Rdxe8 {[%emt 0:00:08]} 31. Rc7 {[%emt 0:00:30]} Re6 {[%emt 0:03:24]} 32. Rgg7 {[%emt 0:01:04]} Rh6 {[%emt 0:11:05]} 33. Nf4 {[%emt 0:00:35]} Re8 {[%emt 0:00:00]} 34. Rgf7 {[%emt 0:00:29]} Rxh2 {[%emt 0:00:00]} 35. b4 {[%emt 0:00:17]} Ne4 {[%emt 0:00:00]} 36. Nd3 {[%emt 0:00:22]} Rh1+ {[%emt 0:00:00]} 37. Kc2 {[%emt 0:00:20]} Nd6 {[%emt 0:00:00]} 38. Rfe7 {[%emt 0:01:02]} Rxe7 {[%emt 0:00:00]} 39. Rxe7 {[%emt 0:00:04]} h5 {[%emt 0:00:59]} 40. Nf4 {[%emt 0:00:00]} h4 {[%emt 0:00:00]} 41. Rd7 {[%emt 0:03:09]} Ne4 {[%emt 0:04:04]} 42. f3 {[%emt 0:03:29]} Nf2 {[%emt 0:04:57]} 43. Nh5 {[%emt 0:01:18]} Kg8 {[%emt 0:09:05]} 44. Nf6+ {[%emt 0:01:34]} Kf8 {[%emt 0:00:05]} 45. Nh7+ {[%emt 0:00:08]} Ke8 {[%emt 0:00:04]} 46. Nf6+ {[%emt 0:00:06]} Kf8 {[%emt 0:00:03]} 1/2-1/2

[Event "European Womens-ch 2025"]
[Site "Rhodes"]
[Date "2025.04.01"]
[Round "2.21"]
[White "Karacsonyi, Kata"]
[Black "Unuk, Laura"]
[Result "0-1"]
[Annotator "RC"]
[ECO "C55"]
[WhiteElo "2198"]
[BlackElo "2301"]
[PlyCount "96"]
[EventDate "2025.03.29"]
[EventType "swiss"]
[EventCountry "GRE"]
[SourceTitle "playchess.com"]
[Source "ChessBase"]
[SourceQuality "1"]
[TimeControl "40/5400+30:1800+30"]

1. e4 {[%emt 0:00:04]} e5 {[%emt 0:01:47]} 2. Nf3 {[%emt 0:00:08]} Nc6 {[%emt 0:00:17]} 3. Bc4 {[%emt 0:00:14]} Nf6 {[%emt 0:00:13]} 4. d3 {[%emt 0:00:09]} h6 {[%emt 0:00:27]} 5. O-O {[%emt 0:00:27]} d6 {[%emt 0:00:17]} 6. a4 {[%emt 0:00:45]} g5 {[%emt 0:00:56]} 7. a5 {[%emt 0:00:28]} a6 {[%emt 0:02:04]} 8. c3 {[%emt 0:00:11]} Bg7 {[%emt 0:02:11]} 9. Nbd2 {[%emt 0:02:16]} O-O {[%emt 0:05:44]} 10. h3 {[%emt 0:00:07]} Ne7 {[%emt 0:03:40]} 11. Re1 {[%emt 0:01:40]} Ng6 {[%emt 0:04:54]} 12. Nf1 {[%emt 0:08:45]} g4 {[%emt 0:22:43]} 13. hxg4 {[%emt 0:00:46]} Nxg4 {[%emt 0:01:10]} 14. N3h2 {[%emt 0:10:10]} Nxh2 {[%emt 0:09:56]} 15. Nxh2 {[%emt 0:01:45]} Kh7 {[%emt 0:00:05]} 16. Be3 {[%emt 0:26:24]} f5 {[%emt 0:06:30]} 17. exf5 {[%emt 0:01:51]} Bxf5 {[%emt 0:00:06]} 18. Bd5 {[%emt 0:06:16]} c6 {[%emt 0:01:18]} 19. Be4 {[%emt 0:00:54]} d5 {[%emt 0:04:39]} 20. Bxf5 {[%emt 0:01:10]} Rxf5 {[%emt 0:00:05]} 21. Ra4 {[%emt 0:03:57]} Qd7 {[%emt 0:03:23]} 22. Qg4 {[%emt 0:12:46]} Raf8 {[%emt 0:00:38]} 23. Qh3 {[%emt 0:10:09]} c5 {[%emt 0:11:30]} 24. b3 {[%emt 0:03:32]} d4 {[%emt 0:00:14]} 25. Bd2 {[%emt 0:00:39]} Qf7 {[%emt 0:06:08]} 26. Ng4 {[%emt 0:01:20]} Nf4 {[%emt 0:06:46]} 27. Bxf4 {[%emt 0:00:32]} Rxf4 {[%emt 0:00:06]} 28. f3 {[%emt 0:02:55]} Qxb3 {[%emt 0:00:58]} 29. Rc4 {[%emt 0:00:32]} dxc3 {[%emt 0:01:10]} 30. Nxe5 {[%emt 0:00:36]} Rxc4 {[%emt 0:00:55]} 31. dxc4 {[%emt 0:02:25]} c2 {[%emt 0:01:05]} 32. Qg4 {[%emt 0:01:56]} Bxe5 {[%emt 0:01:23]} 33. Qe4+ {[%emt 0:00:06]} Kg8 {[%emt 0:00:06]} 34. Qd5+ {[%emt 0:00:54]} Rf7 {[%emt 0:00:43]} 35. Qxe5 {[%emt 0:00:19]} Qxc4 {[%emt 0:00:11]} 36. Qe8+ {[%emt 0:00:39]} Kh7 {[%emt 0:00:43]} 37. Rc1 {[%emt 0:00:38]} Qd4+ {[%emt 0:00:35]} 38. Kf1 {[%emt 0:00:24]} Rd7 {[%emt 0:01:54]} 39. Qe6 {[%emt 0:00:30]} Qd1+ {[%emt 0:00:30]} 40. Kf2 {[%emt 0:00:00]} Qd2+ {[%emt 0:00:00]} 41. Qe2 {[%emt 0:02:08]} Qxc1 {[%emt 0:02:16]} 42. Qe4+ {[%emt 0:00:11]} Kg7 {[%emt 0:02:08]} 43. Qe5+ {[%emt 0:05:41]} Kf7 {[%emt 0:05:51]} 44. Qf5+ {[%emt 0:04:05]} Ke8 {[%emt 0:00:44]} 45. Qe6+ {[%emt 0:09:16]} Re7 {[%emt 0:04:29]} 46. Qg8+ {[%emt 0:01:19]} Kd7 {[%emt 0:00:09]} 47. Qd5+ {[%emt 0:00:05]} Kc7 {[%emt 0:00:34]} 48. Qxc5+ {[%emt 0:00:16]} Kb8 {[%emt 0:00:16]} 0-1

[Event "European Womens-ch 2025"]
[Site "Rhodes"]
[Date "2025.04.01"]
[Round "2.22"]
[White "Piddubna, Bozhena"]
[Black "Heinemann, Josefine"]
[Result "0-1"]
[Annotator "RC"]
[ECO "D11"]
[WhiteElo "2145"]
[BlackElo "2297"]
[PlyCount "144"]
[EventDate "2025.03.29"]
[EventType "swiss"]
[EventCountry "GRE"]
[SourceTitle "playchess.com"]
[Source "ChessBase"]
[SourceQuality "1"]
[TimeControl "40/5400+30:1800+30"]

1. d4 {[%emt 0:02:12]} d5 {[%emt 0:00:11]} 2. c4 {[%emt 0:00:37]} c6 {[%emt 0:00:06]} 3. Nf3 {[%emt 0:00:45]} Nf6 {[%emt 0:00:07]} 4. Qc2 {[%emt 0:02:20]} g6 {[%emt 0:03:51]} 5. e3 {[%emt 0:00:15]} Bf5 {[%emt 0:02:24]} 6. Qb3 {[%emt 0:01:18]} Qb6 {[%emt 0:03:41]} 7. Nbd2 {[%emt 0:01:16]} Bg7 {[%emt 0:06:50]} 8. Be2 {[%emt 0:00:07]} O-O {[%emt 0:00:54]} 9. O-O {[%emt 0:00:22]} Qc7 {[%emt 0:03:44]} 10. Ne5 {[%emt 0:03:46]} Nbd7 {[%emt 0:04:18]} 11. Ndf3 {[%emt 0:01:16]} Nxe5 {[%emt 0:06:32]} 12. Nxe5 {[%emt 0:03:55]} Be6 {[%emt 0:03:41]} 13. Qc2 {[%emt 0:07:20]} c5 {[%emt 0:03:04]} 14. b3 {[%emt 0:12:42]} cxd4 {[%emt 0:09:30]} 15. exd4 {[%emt 0:00:19]} Bf5 {[%emt 0:00:04]} 16. Bd3 {[%emt 0:09:58]} Bxd3 {[%emt 0:01:07]} 17. Nxd3 {[%emt 0:04:12]} dxc4 {[%emt 0:01:48]} 18. Qxc4 {[%emt 0:07:02]} Rac8 {[%emt 0:03:39]} 19. Ne5 {[%emt 0:09:58]} Qa5 {[%emt 0:04:05]} 20. Qe2 {[%emt 0:01:18]} Qc3 {[%emt 0:07:33]} 21. Ba3 {[%emt 0:09:15]} Qxd4 {[%emt 0:03:27]} 22. Rad1 {[%emt 0:09:38]} Qe4 {[%emt 0:02:59]} 23. Qxe4 {[%emt 0:00:02]} Nxe4 {[%emt 0:00:09]} 24. Rfe1 {[%emt 0:06:38]} Bxe5 {[%emt 0:08:32]} 25. Rxe4 {[%emt 0:00:07]} Bf6 {[%emt 0:00:13]} 26. Rd7 {[%emt 0:01:11]} Rfd8 {[%emt 0:00:43]} 27. Rc4 {[%emt 0:03:04]} Rxd7 {[%emt 0:00:59]} 28. Rxc8+ {[%emt 0:00:05]} Kg7 {[%emt 0:00:03]} 29. g3 {[%emt 0:00:06]} h5 {[%emt 0:03:35]} 30. h4 {[%emt 0:01:33]} Rd1+ {[%emt 0:08:07]} 31. Kg2 {[%emt 0:00:05]} Rd2 {[%emt 0:00:02]} 32. Rc7 {[%emt 0:02:25]} Bd4 {[%emt 0:00:40]} 33. Bxe7 {[%emt 0:00:45]} Rxf2+ {[%emt 0:00:14]} 34. Kh3 {[%emt 0:00:12]} Rxa2 {[%emt 0:04:32]} 35. Rxb7 {[%emt 0:00:43]} Re2 {[%emt 0:00:24]} 36. b4 {[%emt 0:00:38]} Rb2 {[%emt 0:00:49]} 37. Rd7 {[%emt 0:00:24]} Be5 {[%emt 0:00:59]} 38. Rd3 {[%emt 0:00:46]} Rc2 {[%emt 0:02:05]} 39. Bc5 {[%emt 0:00:22]} a6 {[%emt 0:01:10]} 40. Bd4 {[%emt 0:00:00]} Bxd4 {[%emt 0:00:00]} 41. Rxd4 {[%emt 0:00:56]} Rc6 {[%emt 0:01:56]} 42. Rd7 {[%emt 0:05:52]} Rb6 {[%emt 0:00:39]} 43. Ra7 {[%emt 0:03:32]} Kf6 {[%emt 0:00:34]} 44. Kg2 {[%emt 0:00:19]} Ke6 {[%emt 0:00:36]} 45. Kf3 {[%emt 0:01:00]} f6 {[%emt 0:01:41]} 46. Ke3 {[%emt 0:02:50]} Kd5 {[%emt 0:02:42]} 47. Rd7+ {[%emt 0:06:47]} Kc4 {[%emt 0:01:52]} 48. Rd4+ {[%emt 0:00:07]} Kc3 {[%emt 0:00:05]} 49. Rf4 {[%emt 0:01:52]} Re6+ {[%emt 0:02:47]} 50. Kf2 {[%emt 0:00:48]} f5 {[%emt 0:00:07]} 51. Kf1 {[%emt 0:00:07]} Re4 {[%emt 0:00:51]} 52. Rf2 {[%emt 0:01:30]} Rxb4 {[%emt 0:00:06]} 53. Rf3+ {[%emt 0:00:07]} Kc4 {[%emt 0:01:49]} 54. Re3 {[%emt 0:00:23]} Rb6 {[%emt 0:01:39]} 55. Ra3 {[%emt 0:00:14]} Kb4 {[%emt 0:00:05]} 56. Ra1 {[%emt 0:00:06]} a5 {[%emt 0:00:22]} 57. Rb1+ {[%emt 0:00:06]} Kc5 {[%emt 0:00:04]} 58. Ra1 {[%emt 0:00:12]} Ra6 {[%emt 0:00:03]} 59. Kf2 {[%emt 0:00:07]} a4 {[%emt 0:00:05]} 60. Kf3 {[%emt 0:00:14]} a3 {[%emt 0:00:06]} 61. Kf4 {[%emt 0:00:17]} Kb4 {[%emt 0:00:38]} 62. Kg5 {[%emt 0:00:18]} Kb3 {[%emt 0:00:05]} 63. Rb1+ {[%emt 0:00:15]} Kc2 {[%emt 0:00:05]} 64. Ra1 {[%emt 0:00:15]} Kb2 {[%emt 0:00:04]} 65. Rf1 {[%emt 0:00:19]} a2 {[%emt 0:00:11]} 66. Rf2+ {[%emt 0:00:03]} Kc3 {[%emt 0:00:23]} 67. Rxa2 {[%emt 0:01:00]} Rxa2 {[%emt 0:00:03]} 68. Kxg6 {[%emt 0:00:05]} Rg2 {[%emt 0:00:03]} 69. Kxh5 {[%emt 0:00:28]} Rxg3 {[%emt 0:00:05]} 70. Kh6 {[%emt 0:00:04]} f4 {[%emt 0:00:04]} 71. h5 {[%emt 0:00:04]} f3 {[%emt 0:00:03]} 72. Kh7 {[%emt 0:00:03]} f2 {[%emt 0:00:04]} 0-1